fUSD/lending_fUSD_20260115
["ID","MTS","AMOUNT","RATE_DAILY","PERIOD"]
[402103425,1768518671247,-500.0,0.00036164,10]
[402103426,1768518671257,-688.36,0.00036164,10]
[402103427,1768518671267,-567.19,0.00036164,10]
[402103428,1768518671277,-1298.96,0.00036164,10]
[402103429,1768518671286,-500.0,0.00036164,10]
[402103430,1768518671295,-500.0,0.00036164,10]
[402103431,1768518671305,-700.74,0.00036164,10]
[402103432,1768518671315,-1233.09,0.00036164,10]
[402103433,1768518671325,-500.0,0.00036164,10]
[402103434,1768518671334,-536.64,0.00036164,10]
[402103436,1768518671344,-694.95,0.00036164,10]
[402103437,1768518671354,-812.2,0.00036164,10]
[402103438,1768518671364,-500.0,0.00036164,10]
[402103439,1768518671373,-718.18,0.00036164,10]
[402103440,1768518671383,-500.0,0.00036164,10]
[402103441,1768518671392,-719.88,0.00036164,10]
[402103442,1768518671401,-512.52,0.00036164,10]
[402103443,1768518671411,-500.0,0.00036164,10]
[402103444,1768518671421,-762.34,0.00036164,10]
[402103445,1768518671430,-500.0,0.00036164,10]
[402103446,1768518671441,-500.0,0.00036164,10]
[402103447,1768518671451,-500.0,0.00036164,10]
[402103449,1768518671461,-531.29,0.00036164,10]
[402103450,1768518671470,-500.0,0.00036164,10]
[402103451,1768518671480,-1146.08,0.00036164,10]
[402103452,1768518671490,-500.0,0.00036164,10]
[402103453,1768518671499,-500.0,0.00036164,10]
[402103454,1768518671508,-3231.42543305,0.00036164,10]
[402103456,1768518671518,-500.0,0.00036164,10]
[402103457,1768518671527,-500.0,0.00036164,10]
[402103458,1768518671537,-500.0,0.00036164,10]
[402103459,1768518671546,-832.07,0.00036164,10]
[402103460,1768518671555,-882.74,0.00036164,10]
[402103461,1768518671564,-500.0,0.00036164,10]
[402103463,1768518671574,-816.67,0.00036164,10]
[402103464,1768518671583,-635.70121864,0.00036164,10]
[402103465,1768518671592,-500.0,0.00036164,10]
[402103466,1768518671601,-500.0,0.00036164,10]
[402103467,1768518671611,-2295.21,0.00036164,10]
[402103468,1768518671620,-854.38,0.00036164,10]
[402103470,1768518671629,-500.0,0.00036164,10]
[402103471,1768518671639,-952.82,0.00036164,10]
[402103472,1768518671648,-637.89,0.00036164,10]
[402103473,1768518671657,-500.0,0.00036164,10]
[402103474,1768518671666,-616.4076469,0.00036164,10]
[402103476,1768518671675,-500.0,0.00036164,10]
[402103477,1768518671684,-500.0,0.00036164,10]
[402103478,1768518671693,-500.0,0.00036164,10]
[402103479,1768518671703,-500.0,0.00036164,10]
[402103480,1768518671713,-1214.68,0.00036164,10]
[402103481,1768518671723,-500.0,0.00036164,10]
[402103483,1768518671732,-770.39,0.00036164,10]
[402103484,1768518671742,-500.0,0.00036164,10]
[402103485,1768518671751,-536.23,0.00036164,10]
[402103486,1768518671760,-748.46,0.00036164,10]
[402103487,1768518671769,-1070.45,0.00036164,10]
[402103488,1768518671779,-500.0,0.00036164,10]
[402103490,1768518671788,-797.37,0.00036164,10]
[402103491,1768518671798,-500.0,0.00036164,10]
[402103492,1768518671807,-686.52,0.00036164,10]
[402103493,1768518671816,-500.0,0.00036164,10]
[402103494,1768518671825,-470.18,0.00036164,10]
[402103495,1768518671834,-177.728588,0.00036164,10]
[402103497,1768518671844,-500.0,0.00036164,10]
[402103498,1768518671853,-886.14,0.00036164,10]
[402103499,1768518671863,-500.0,0.00036164,10]
[402103500,1768518671873,-710.83,0.00036164,10]
[402103501,1768518671882,-505.71,0.00036164,10]
[402103502,1768518671892,-518.12,0.00036164,10]
[402103504,1768518671901,-500.0,0.00036164,10]
[402103505,1768518671910,-500.0,0.00036164,10]
[402103506,1768518671920,-500.0,0.00036164,10]
[402103507,1768518671929,-718.45,0.00036164,10]
[402103508,1768518671938,-786.32,0.00036164,10]
[402103509,1768518671949,-813.47,0.00036164,10]
[402103510,1768518671958,-512.75,0.00036164,10]
[402103512,1768518671967,-849.02,0.00036164,10]
[402103513,1768518671980,-1007.92,0.00036164,10]
[402103514,1768518671990,-590.15,0.00036164,10]
[402103515,1768518671999,-500.0,0.00036164,10]
[402103516,1768518672009,-500.0,0.00036164,10]
[402103517,1768518672019,-500.0,0.00036164,10]
[402103519,1768518672028,-503.75,0.00036164,10]
[402103520,1768518672037,-500.0,0.00036164,10]
[402103521,1768518672048,-915.51,0.00036164,10]
[402103522,1768518672058,-1076.56,0.00036164,10]
[402103523,1768518672067,-500.0,0.00036164,10]
[402103524,1768518672077,-592.94,0.00036164,10]
[402103525,1768518672087,-500.0,0.00036164,10]
[402103526,1768518672096,-500.0,0.00036164,10]
[402103527,1768518672106,-1000.0,0.00036164,10]
[402103529,1768518672115,-500.0,0.00036164,10]
[402103530,1768518672125,-671.57,0.00036164,10]
[402103531,1768518672134,-599.96,0.00036164,10]
[402103532,1768518672143,-200.0,0.00036164,120]
[402103533,1768518672153,-500.0,0.00036164,10]
[402103534,1768518672162,-500.0,0.00036164,10]
[402103536,1768518672171,-500.0,0.00036164,10]
[402103537,1768518672180,-985.05,0.00036164,10]
[402103538,1768518672190,-500.0,0.00036164,10]
[402103539,1768518672199,-509.13,0.00036164,10]
[402103540,1768518672209,-716.46,0.00036164,10]
[402103541,1768518672218,-1177.41,0.00036164,10]
[402103542,1768518672228,-516.37,0.00036164,10]
[402103543,1768518672237,-504.0,0.00036164,10]
[402103545,1768518672247,-500.0,0.00036164,10]
[402103546,1768518672256,-500.0,0.00036164,10]
[402103547,1768518672265,-704.66,0.00036164,10]
[402103548,1768518672275,-529.75,0.00036164,10]
[402103549,1768518672284,-500.0,0.00036164,10]
[402103550,1768518672293,-1816.28,0.00036164,10]
[402103552,1768518672302,-500.0,0.00036164,10]
[402103553,1768518672311,-500.0,0.00036164,10]
[402103554,1768518672320,-500.0,0.00036164,10]
[402103555,1768518672330,-621.29,0.00036164,10]
[402103556,1768518672341,-609.85,0.00036164,10]
[402103557,1768518672351,-649.31,0.00036164,10]
[402103559,1768518672360,-25000.0,0.00036164,10]
[402103560,1768518672370,-551.8,0.00036164,10]
[402103561,1768518672379,-500.0,0.00036164,10]
[402103562,1768518672389,-500.0,0.00036164,10]
[402103563,1768518672399,-500.0,0.00036164,10]
[402103565,1768518672408,-500.0,0.00036164,10]
[402103566,1768518672418,-500.0,0.00036164,10]
[402103567,1768518672427,-1155.17,0.00036164,10]
[402103568,1768518672437,-690.71,0.00036164,10]
[402103569,1768518672447,-500.0,0.00036164,10]
[402103570,1768518672457,-500.0,0.00036164,10]
[402103571,1768518672467,-734.53,0.00036164,10]
[402103573,1768518672476,-500.0,0.00036164,10]
[402103574,1768518672485,-500.0,0.00036164,10]
[402103575,1768518672495,-906.67,0.00036164,10]
[402103576,1768518672504,-1092.37,0.00036164,10]
[402103577,1768518672513,-585.0,0.00036164,10]
[402103578,1768518672523,-761.07,0.00036164,10]
[402103580,1768518672532,-661.98,0.00036164,10]
[402103581,1768518672542,-500.0,0.00036164,10]
[402103582,1768518672551,-500.0,0.00036164,10]
[402103583,1768518672560,-1070.46,0.00036164,10]
[402103584,1768518672570,-500.0,0.00036164,10]
[402103585,1768518672578,-500.0,0.00036164,10]
[402103587,1768518672587,-704.8,0.00036164,10]
[402103588,1768518672596,-500.0,0.00036164,10]
[402103589,1768518672606,-952.45,0.00036164,10]
[402103590,1768518672615,-704.78,0.00036164,10]
[402103591,1768518672625,-547.92,0.00036164,10]
[402103592,1768518672634,-793.36,0.00036164,10]
[402103593,1768518672643,-704.61,0.00036164,10]
[402103595,1768518672652,-500.0,0.00036164,10]
[402103596,1768518672661,-684.28,0.00036164,10]
[402103597,1768518672670,-500.0,0.00036164,10]
[402103598,1768518672680,-500.0,0.00036164,10]
[402103599,1768518672689,-500.0,0.00036164,10]
[402103600,1768518672698,-1423.34,0.00036164,10]
[402103602,1768518672707,-500.0,0.00036164,10]
[402103603,1768518672716,-500.0,0.00036164,10]
[402103604,1768518672725,-902.07,0.00036164,10]
[402103605,1768518672735,-692.78,0.00036164,10]
[402103606,1768518672744,-719.82,0.00036164,10]
[402103607,1768518672753,-500.0,0.00036164,10]
[402103609,1768518672762,-523.9,0.00036164,10]
[402103610,1768518672771,-500.0,0.00036164,10]
[402103611,1768518672781,-645.45,0.00036164,10]
[402103612,1768518672790,-563.81890593,0.00036164,10]
[402103613,1768518672799,-684.02,0.00036164,10]
[402103614,1768518672808,-818.97,0.00036164,10]
[402103615,1768518672817,-500.0,0.00036164,10]
[402103617,1768518672826,-561.74,0.00036164,10]
[402103618,1768518672836,-905.38,0.00036164,10]
[402103619,1768518672845,-1593.96,0.00036164,10]
[402103620,1768518672854,-500.0,0.00036164,10]
[402103621,1768518672863,-500.0,0.00036164,10]
[402103622,1768518672872,-500.0,0.00036164,10]
[402103624,1768518672881,-662.4,0.00036164,10]
[402103625,1768518672890,-300.0,0.00036164,2]
[402103626,1768518672900,-1441.86,0.00036164,10]
[402103627,1768518672909,-1009.15,0.00036164,10]
[402103628,1768518672918,-1438.72,0.00036164,10]
[402103629,1768518672927,-802.41,0.00036164,10]
[402103630,1768518672937,-500.0,0.00036164,10]
[402103631,1768518672946,-3542.81,0.00036164,10]
[402103632,1768518672956,-722.01,0.00036164,10]
[402103633,1768518672965,-500.0,0.00036164,10]
[402103634,1768518672977,-502.57,0.00036164,10]
[402103635,1768518672986,-500.0,0.00036164,10]
[402103636,1768518672996,-1152.72,0.00036164,10]
[402103637,1768518673005,-500.0,0.00036164,10]
[402103638,1768518673015,-1050.28,0.00036164,10]
[402103639,1768518673024,-1119.42,0.00036164,10]
[402103641,1768518673034,-1735.9,0.00036164,10]
[402103642,1768518673043,-1319.31,0.00036164,10]
[402103643,1768518673055,-500.0,0.00036164,10]
[402103644,1768518673064,-500.0,0.00036164,10]
[402103645,1768518673073,-500.0,0.00036164,10]
[402103646,1768518673082,-500.0,0.00036164,10]
[402103648,1768518673091,-535.01,0.00036164,10]
[402103649,1768518673100,-500.0,0.00036164,10]
[402103650,1768518673110,-678.05,0.00036164,10]
[402103651,1768518673119,-367.48700193,0.00036164,10]
[402103652,1768518673128,-971.95,0.00036164,10]
[402103654,1768518673137,-500.0,0.00036164,10]
[402103655,1768518673147,-500.0,0.00036164,10]
[402103656,1768518673156,-500.0,0.00036164,10]
[402103657,1768518673165,-500.0,0.00036164,10]
[402103658,1768518673175,-500.0,0.00036164,10]
[402103659,1768518673185,-1390.64,0.00036164,10]
[402103661,1768518673195,-627.74,0.00036164,10]
[402103662,1768518673205,-1442.68,0.00036164,10]
[402103663,1768518673215,-512.77,0.00036164,10]
[402103666,1768518673310,-500.0,0.00036164,10]
[402103667,1768518673320,-500.0,0.00036164,10]
[402103668,1768518673329,-500.0,0.00036164,10]
[402103669,1768518673338,-500.0,0.00036164,10]
[402103670,1768518673347,-500.0,0.00036164,10]
[402103672,1768518673356,-500.0,0.00036164,10]
[402103673,1768518673365,-769.22,0.00036164,10]
[402103674,1768518673375,-500.0,0.00036164,10]
[402103675,1768518673384,-714.1,0.00036164,10]
[402103676,1768518673394,-762.37,0.00036164,10]
[402103677,1768518673403,-500.0,0.00036164,10]
[402103678,1768518673412,-500.0,0.00036164,10]
[402103680,1768518673422,-500.0,0.00036164,10]
[402103681,1768518673431,-880.15,0.00036164,10]
[402103682,1768518673440,-1784.14,0.00036164,10]
[402103683,1768518673449,-1297.94,0.00036164,10]
[402103684,1768518673458,-757.01,0.00036164,10]
[402103685,1768518673467,-980.55,0.00036164,10]
[402103687,1768518673476,-928.23,0.00036164,10]
[402103688,1768518673487,-1138.9,0.00036164,10]
[402103689,1768518673496,-909.1,0.00036164,10]
[402103690,1768518673505,-738.03,0.00036164,10]
[402103691,1768518673514,-512.87,0.00036164,10]
[402103692,1768518673523,-500.0,0.00036164,10]
[402103694,1768518673532,-708.51,0.00036164,10]
[402103695,1768518673541,-1026.93,0.00036164,10]
[402103696,1768518673550,-500.0,0.00036164,10]
[402103697,1768518673560,-1338.57,0.00036164,10]
[402103698,1768518673569,-1155.56,0.00036164,10]
[402103699,1768518673578,-500.0,0.00036164,10]
[402103700,1768518673587,-537.87,0.00036164,10]
[402103702,1768518673596,-751.42,0.00036164,10]
[402103703,1768518673605,-500.0,0.00036164,10]
[402103704,1768518673615,-500.0,0.00036164,10]
[402103705,1768518673624,-500.0,0.00036164,10]
[402103706,1768518673633,-500.0,0.00036164,10]
[402103707,1768518673643,-500.0,0.00036164,10]
[402103708,1768518673652,-500.0,0.00036164,10]
[402103709,1768518673661,-828.05,0.00036164,10]
[402103710,1768518673669,-500.0,0.00036164,10]
[402103711,1768518673678,-961.52,0.00036164,10]
[402103713,1768518673687,-508.88,0.00036164,10]
[402103714,1768518673696,-4242.95,0.00036164,10]
[402103715,1768518673706,-500.0,0.00036164,10]
[402103716,1768518673715,-1233.54,0.00036164,10]
[402103717,1768518673725,-500.0,0.00036164,10]
[402103718,1768518673734,-500.0,0.00036164,10]
[402103719,1768518673745,-1333.53,0.00036164,10]
[402103720,1768518673756,-500.0,0.00036164,10]
[402103722,1768518673765,-500.0,0.00036164,10]
[402103723,1768518673774,-1462.17,0.00036164,10]
[402103724,1768518673783,-500.18,0.00036164,10]
[402103725,1768518673793,-1989.88,0.00036164,10]
[402103726,1768518673802,-500.0,0.00036164,10]
[402103727,1768518673811,-973.77,0.00036164,10]
[402103729,1768518673820,-500.0,0.00036164,10]
[402103730,1768518673829,-964.12,0.00036164,10]
[402103731,1768518673839,-1119.05,0.00036164,10]
[402103732,1768518673847,-502.75,0.00036164,10]
[402103733,1768518673857,-500.0,0.00036164,10]
[402103734,1768518673866,-500.0,0.00036164,10]
[402103736,1768518673875,-500.0,0.00036164,10]
[402103737,1768518673884,-500.0,0.00036164,10]
[402103738,1768518673893,-1234.55,0.00036164,10]
[402103739,1768518673902,-521.33,0.00036164,10]
[402103740,1768518673911,-511.59,0.00036164,10]
[402103741,1768518673920,-1073.69,0.00036164,10]
[402103743,1768518673932,-1080.27,0.00036164,10]
[402103744,1768518673941,-265.20237761,0.00036164,10]
[402103745,1768518673950,-500.0,0.00036164,10]
[402103746,1768518673959,-1273.16,0.00036164,10]
[402103747,1768518673968,-500.0,0.00036164,10]
[402103749,1768518673982,-500.0,0.00036164,10]
[402103750,1768518673991,-500.0,0.00036164,10]
[402103751,1768518674000,-1083.01,0.00036164,10]
[402103752,1768518674010,-500.0,0.00036164,10]
[402103753,1768518674019,-529.36,0.00036164,10]
[402103754,1768518674028,-500.0,0.00036164,10]
[402103756,1768518674037,-1002.18,0.00036164,10]
[402103757,1768518674051,-907.9,0.00036164,10]
[402103758,1768518674059,-559.01,0.00036164,10]
[402103759,1768518674070,-1966.7,0.00036164,10]
[402103760,1768518674079,-1121.4,0.00036164,10]
[402103761,1768518674088,-1004.43,0.00036164,10]
[402103763,1768518674098,-500.0,0.00036164,10]
[402103764,1768518674107,-1006.79,0.00036164,10]
[402103765,1768518674116,-1650.11,0.00036164,10]
[402103766,1768518674125,-3898.64,0.00036164,10]
[402103767,1768518674134,-2734.64,0.00036164,10]
[402103768,1768518674143,-500.0,0.00036164,10]
[402103770,1768518674151,-1028.04,0.00036164,10]
[402103771,1768518674160,-602.65,0.00036164,10]
[402103772,1768518674169,-500.0,0.00036164,10]
[402103773,1768518674177,-500.0,0.00036164,10]
[402103774,1768518674186,-500.0,0.00036164,10]
[402103775,1768518674195,-500.0,0.00036164,10]
[402103776,1768518674204,-500.0,0.00036164,10]
[402103778,1768518674213,-500.0,0.00036164,10]
[402103779,1768518674222,-727.07,0.00036164,10]
[402103780,1768518674231,-831.72,0.00036164,10]
[402103781,1768518674240,-500.0,0.00036164,10]
[402103782,1768518674249,-500.0,0.00036164,10]
[402103783,1768518674259,-500.0,0.00036164,10]
[402103785,1768518674268,-619.34,0.00036164,10]
[402103786,1768518674278,-500.0,0.00036164,10]
[402103787,1768518674287,-500.0,0.00036164,10]
[402103788,1768518674296,-1150.76,0.00036164,10]
[402103789,1768518674307,-500.0,0.00036164,10]
[402103790,1768518674316,-1180.11,0.00036164,10]
[402103792,1768518674325,-970.86,0.00036164,10]
[402103793,1768518674334,-1043.57,0.00036164,10]
[402103794,1768518674343,-598.03,0.00036164,10]
[402103795,1768518674353,-500.0,0.00036164,10]
[402103796,1768518674362,-746.69,0.00036164,10]
[402103797,1768518674371,-674.45,0.00036164,10]
[402103798,1768518674380,-1081.34,0.00036164,10]
[402103799,1768518674389,-996.55,0.00036164,10]
[402103800,1768518674398,-601.97,0.00036164,10]
[402103801,1768518674407,-1501.48,0.00036164,10]
[402103802,1768518674415,-500.0,0.00036164,10]
[402103803,1768518674424,-563.14,0.00036164,10]
[402103805,1768518674434,-500.0,0.00036164,10]
[402103806,1768518674443,-511.36,0.00036164,10]
[402103807,1768518674452,-1790.04,0.00036164,10]
[402103808,1768518674460,-1121.04,0.00036164,10]
[402103809,1768518674469,-1391.88,0.00036164,10]
[402103810,1768518674478,-500.0,0.00036164,10]
[402103812,1768518674487,-998.86,0.00036164,10]
[402103813,1768518674496,-500.0,0.00036164,10]
[402103814,1768518674505,-977.0,0.00036164,10]
[402103815,1768518674515,-553.89,0.00036164,10]
[402103816,1768518674524,-1045.51,0.00036164,10]
[402103817,1768518674533,-1104.45,0.00036164,10]
[402103818,1768518674543,-500.0,0.00036164,10]
[402103820,1768518674552,-500.0,0.00036164,10]
[402103821,1768518674561,-500.0,0.00036164,10]
[402103822,1768518674571,-1250.68,0.00036164,10]
[402103823,1768518674580,-916.58,0.00036164,10]
[402103824,1768518674589,-1910.23,0.00036164,10]
[402103825,1768518674598,-711.24,0.00036164,10]
[402103827,1768518674607,-1517.66,0.00036164,10]
[402103828,1768518674616,-500.0,0.00036164,10]
[402103829,1768518674626,-921.11,0.00036164,10]
[402103830,1768518674635,-561.0,0.00036164,10]
[402103831,1768518674644,-500.0,0.00036164,10]
[402103832,1768518674653,-953.34,0.00036164,10]
[402103834,1768518674662,-581.69,0.00036164,10]
[402103835,1768518674671,-500.0,0.00036164,10]
[402103836,1768518674680,-500.0,0.00036164,10]
[402103837,1768518674689,-978.36,0.00036164,10]
[402103838,1768518674699,-4684.94,0.00036164,10]
[402103840,1768518674709,-545.73,0.00036164,10]
[402103841,1768518674718,-649.17,0.00036164,10]
[402103842,1768518674729,-500.0,0.00036164,10]
[402103843,1768518674739,-582.59,0.00036164,10]
[402103844,1768518674748,-151.0,0.00036164,31]
[402103845,1768518674759,-500.0,0.00036164,10]
[402103846,1768518674768,-1634.41,0.00036164,10]
[402103847,1768518674777,-500.0,0.00036164,10]
[402103848,1768518674787,-846.67,0.00036164,10]
[402103849,1768518674796,-849.53,0.00036164,10]
[402103850,1768518674806,-500.0,0.00036164,10]
[402103851,1768518674816,-500.0,0.00036164,10]
[402103853,1768518674825,-1282.43,0.00036164,10]
[402103854,1768518674836,-864.74,0.00036164,10]
[402103855,1768518674846,-508.78,0.00036164,10]
[402103856,1768518674857,-739.26,0.00036164,10]
[402103857,1768518674868,-500.0,0.00036164,10]
[402103859,1768518674877,-955.8,0.00036164,10]
[402103860,1768518674886,-1184.63,0.00036164,10]
[402103861,1768518674897,-738.59,0.00036164,10]
[402103862,1768518674907,-690.24,0.00036164,10]
[402103863,1768518674916,-500.0,0.00036164,120]
[402103864,1768518674925,-500.03,0.00036164,10]
[402103866,1768518674934,-1965.52,0.00036164,10]
[402103867,1768518674944,-1351.53,0.00036164,10]
[402103868,1768518674954,-1274.81,0.00036164,10]
[402103869,1768518674963,-802.0,0.00036164,10]
[402103870,1768518674974,-500.0,0.00036164,10]
[402103871,1768518674984,-3026.06,0.00036164,10]
[402103873,1768518674993,-570.85,0.00036164,10]
[402103874,1768518675004,-500.0,0.00036164,10]
[402103875,1768518675015,-500.0,0.00036164,10]
[402103876,1768518675027,-500.0,0.00036164,10]
[402103877,1768518675037,-500.0,0.00036164,10]
[402103879,1768518675050,-1889.61,0.00036164,10]
[402103880,1768518675059,-613.86,0.00036164,10]
[402103881,1768518675068,-527.05,0.00036164,10]
[402103882,1768518675079,-891.37,0.00036164,10]
[402103883,1768518675088,-500.0,0.00036164,10]
[402103884,1768518675098,-683.77,0.00036164,10]
[402103886,1768518675108,-3850.69,0.00036164,10]
[402103887,1768518675118,-500.0,0.00036164,10]
[402103888,1768518675127,-1541.93,0.00036164,10]
[402103889,1768518675136,-1360.12,0.00036164,10]
[402103890,1768518675146,-568.88,0.00036164,10]
[402103891,1768518675155,-500.0,0.00036164,10]
[402103892,1768518675165,-885.71,0.00036164,10]
[402103893,1768518675175,-500.0,0.00036164,10]
[402103894,1768518675184,-170.440078,0.00036164,7]
[402103895,1768518675193,-170.440078,0.00036164,7]
[402103896,1768518675202,-500.0,0.00036164,10]
[402103897,1768518675212,-1693.39,0.00036164,10]
[402103898,1768518675222,-170.440078,0.00036164,7]
[402103899,1768518675231,-768.5,0.00036164,10]
[402103900,1768518675240,-1163.5,0.00036164,10]
[402103901,1768518675249,-170.440078,0.00036164,7]
[402103902,1768518675259,-530.51,0.00036164,10]
[402103903,1768518675268,-2217.43,0.00036164,10]
[402103904,1768518675277,-1158.46,0.00036164,10]
[402103905,1768518675287,-563.63,0.00036164,10]
[402103906,1768518675297,-508.69255667,0.00036164,10]
[402103907,1768518675307,-500.0,0.00036164,10]
[402103908,1768518675317,-522.92,0.00036164,10]
[402103909,1768518675327,-500.0,0.00036164,10]
[402103910,1768518675336,-621.56,0.00036164,10]
[402103911,1768518675346,-549.22,0.00036164,10]
[402103912,1768518675355,-500.0,0.00036164,10]
[402103913,1768518675365,-863.64,0.00036164,10]
[402103914,1768518675374,-1626.38,0.00036164,10]
[402103915,1768518675383,-905.62,0.00036164,10]
[402103916,1768518675393,-719.6,0.00036164,10]
[402103917,1768518675402,-1735.06,0.00036164,10]
[402103918,1768518675412,-642.68,0.00036164,10]
[402103919,1768518675422,-500.0,0.00036164,10]
[402103920,1768518675431,-151.0,0.00036164,31]
[402103921,1768518675441,-500.0,0.00036164,10]
[402103922,1768518675450,-689.17,0.00036164,10]
[402103923,1768518675460,-725.57,0.00036164,10]
[402103924,1768518675469,-1158.13,0.00036164,10]
[402103925,1768518675479,-612.04,0.00036164,10]
[402103926,1768518675490,-1075.88,0.00036164,10]
[402103927,1768518675500,-2108.76,0.00036164,10]
[402103928,1768518675511,-1106.68,0.00036164,10]
[402103929,1768518675520,-585.7396502,0.00036164,10]
[402103930,1768518675530,-500.0,0.00036164,10]
[402103931,1768518675540,-531.51,0.00036164,10]
[402103933,1768518675549,-1126.45,0.00036164,10]
[402103934,1768518675560,-500.0,0.00036164,10]
[402103935,1768518675569,-898.91,0.00036164,10]
[402103936,1768518675579,-1677.68,0.00036164,10]
[402103937,1768518675588,-500.0,0.00036164,10]
[402103939,1768518675599,-500.0,0.00036164,10]
[402103940,1768518675608,-512.88,0.00036164,10]
[402103941,1768518675618,-500.0,0.00036164,10]
[402103942,1768518675628,-1040.13,0.00036164,10]
[402103943,1768518675638,-845.55,0.00036164,10]
[402103944,1768518675648,-703.57,0.00036164,10]
[402103946,1768518675657,-500.0,0.00036164,10]
[402103947,1768518675667,-271.28731236,0.00036164,10]
[402103948,1768518675676,-594.48,0.00036164,10]
[402103949,1768518675686,-515.29,0.00036164,10]
[402103950,1768518675695,-595.72,0.00036164,10]
[402103951,1768518675704,-769.88,0.00036164,10]
[402103952,1768518675714,-2316.83,0.00036164,10]
[402103953,1768518675724,-1144.62,0.00036164,10]
[402103954,1768518675734,-1679.06,0.00036164,10]
[402103955,1768518675744,-1576.66,0.00036164,10]
[402103956,1768518675757,-500.0,0.00036164,10]
[402103957,1768518675767,-867.09,0.00036164,10]
[402103958,1768518675777,-1581.31,0.00036164,10]
[402103959,1768518675786,-1392.48,0.00036164,10]
[402103961,1768518675796,-1232.63,0.00036164,10]
[402103962,1768518675805,-500.0,0.00036164,10]
[402103963,1768518675814,-500.0,0.00036164,10]
[402103964,1768518675827,-500.0,0.00036164,10]
[402103965,1768518675837,-1042.69,0.00036164,10]
[402103967,1768518675846,-1340.17,0.00036164,10]
[402103968,1768518675856,-1001.46,0.00036164,10]
[402103969,1768518675866,-729.05,0.00036164,10]
[402103970,1768518675877,-778.74,0.00036164,10]
[402103971,1768518675888,-680.56,0.00036164,10]
[402103972,1768518675899,-500.0,0.00036164,10]
[402103974,1768518675909,-1304.16,0.00036164,10]
[402103975,1768518675919,-1572.64,0.00036164,10]
[402103976,1768518675928,-500.0,0.00036164,10]
[402103977,1768518675937,-1157.19,0.00036164,10]
[402103978,1768518675947,-561.59,0.00036164,10]
[402103979,1768518675957,-1175.0,0.00036164,10]
[402103981,1768518675966,-865.79,0.00036164,10]
[402103982,1768518675979,-2735.48,0.00036164,10]
[402103983,1768518675990,-657.5,0.00036164,10]
[402103984,1768518676001,-785.6,0.00036164,10]
[402103985,1768518676012,-500.0,0.00036164,10]
[402103987,1768518676023,-643.08,0.00036164,10]
[402103988,1768518676034,-500.0,0.00036164,10]
[402103989,1768518676044,-500.0,0.00036164,10]
[402103990,1768518676057,-500.0,0.00036164,10]
[402103991,1768518676067,-922.71,0.00036164,10]
[402103993,1768518676078,-500.0,0.00036164,10]
[402103994,1768518676087,-597.51,0.00036164,10]